bitfinex/quotes_BTCUSD_20250422
["timestamp","ask_amount","ask_price","bid_price","bid_amount"]
[1745289402619,0.11375594,88063.0,88062.0,0.22711271]
[1745289402830,0.11375594,88063.0,88061.0,0.01059702]
[1745289403306,0.11375594,88063.0,88062.0,0.22711271]
[1745289403959,0.11375594,88063.0,88062.0,0.23770973]
[1745289404382,0.11375594,88063.0,88062.0,0.01059702]
[1745289405177,0.11475594,88063.0,88062.0,0.01059702]
[1745289406175,0.11475594,88063.0,88062.0,0.0185466]
[1745289408327,0.11475594,88063.0,88060.0,0.22711787]
[1745289408556,0.11475594,88063.0,88060.0,0.23847376]
[1745289408770,0.11475594,88063.0,88061.0,0.22711393]
[1745289409252,0.11375594,88063.0,88061.0,0.22711393]
[1745289409922,0.12511144,88063.0,88055.0,0.57848685]
[1745289410126,0.01135602,88059.0,88052.0,0.22713644]
[1745289410316,0.01135757,88047.0,88044.0,0.34]
[1745289410599,0.16225594,88046.0,88045.0,0.01135782]
[1745289410997,0.22715656,88045.0,88043.0,0.02645444]
[1745289411171,0.11375594,88044.0,88043.0,0.02645444]
[1745289411370,0.11375594,88044.0,88043.0,0.00013732]
[1745289412196,0.11375594,88044.0,88043.0,0.02923425]
[1745289412405,0.11375594,88044.0,88043.0,0.00013732]
[1745289412601,0.11375594,88044.0,88043.0,0.00113732]
[1745289412807,0.11375594,88044.0,88043.0,0.00450559]
[1745289413010,0.11375594,88044.0,88043.0,0.00113732]
[1745289413213,0.11275594,88044.0,88043.0,0.00113732]
[1745289413492,0.11275594,88044.0,88043.0,0.00450559]
[1745289413683,0.11275594,88044.0,88043.0,0.00113732]
[1745289413915,0.11275594,88044.0,88043.0,0.00550559]
[1745289414143,0.11275594,88044.0,88043.0,0.00213732]
[1745289414359,0.11275594,88044.0,88043.0,0.00550559]
[1745289414550,0.11275594,88044.0,88043.0,0.00213732]
[1745289414767,0.11275594,88044.0,88043.0,0.00568547]
[1745289414980,0.11275594,88044.0,88043.0,0.02862194]
[1745289415159,0.11275594,88044.0,88043.0,0.03217009]
[1745289415388,0.11275594,88044.0,88043.0,0.00568547]
[1745289416422,0.11275594,88044.0,88043.0,0.0319853]
[1745289416577,0.11275594,88044.0,88043.0,0.00568547]
[1745289418159,0.0468,88054.0,88051.0,0.23849661]
[1745289418520,0.01135615,88058.0,88053.0,0.23849271]
[1745289418736,0.23847599,88060.0,88054.0,0.23848785]
[1745289418737,0.11375594,88056.0,88054.0,0.23848785]
[1745289418947,0.11375594,88056.0,88054.0,0.22713119]
[1745289419141,0.11375594,88056.0,88053.0,0.23849271]
[1745289419142,0.11375594,88056.0,88055.0,0.00354862]
[1745289419579,0.12511234,88056.0,88051.0,0.23849564]
[1745289419813,0.11375594,88056.0,88055.0,0.00354862]
[1745289420015,0.11375594,88056.0,88053.0,0.01135679]
[1745289420226,0.11575594,88056.0,88055.0,0.00354862]
[1745289420434,0.11375594,88056.0,88054.0,0.22713334]
[1745289420637,0.11375594,88056.0,88055.0,0.00351342]
[1745289421065,0.11475594,88056.0,88055.0,0.0141111]
[1745289421282,0.001,88056.0,88055.0,0.0141111]
[1745289421715,0.01135499,88067.0,88062.0,0.01135563]
[1745289421922,0.11375594,88066.0,88065.0,0.22710497]
[1745289422371,0.11375594,88066.0,88065.0,0.00349698]
[1745289422812,0.11375594,88066.0,88063.0,0.23770749]
[1745289423030,0.11375594,88066.0,88065.0,0.01409466]
[1745289423250,0.11375594,88066.0,88065.0,0.01059768]
[1745289423462,0.11375594,88066.0,88065.0,0.01409466]
[1745289424664,0.11475594,88066.0,88065.0,0.01409466]
[1745289425575,0.11575594,88066.0,88065.0,0.01409466]
[1745289425785,0.11475594,88066.0,88065.0,0.01409466]
[1745289426216,0.11575594,88066.0,88065.0,0.01409466]
[1745289430629,0.11575594,88066.0,88065.0,0.01385962]
[1745289433159,0.11575594,88066.0,88065.0,0.01036264]
[1745289433374,0.16255594,88066.0,88065.0,0.01036264]
[1745289433592,0.21135594,88066.0,88065.0,0.01036264]
[1745289433818,0.21235594,88066.0,88065.0,0.01036264]
[1745289434336,0.01135692,88052.0,88047.0,0.2385079]
[1745289434545,0.12511299,88051.0,88047.0,0.22715033]
[1745289434753,0.12511299,88051.0,88048.0,0.00339196]
[1745289435904,0.11375594,88051.0,88048.0,0.00339196]
[1745289436195,0.11375594,88051.0,88048.0,0.00439196]
[1745289436431,0.12511299,88051.0,88048.0,0.00439196]
[1745289436860,0.12511299,88051.0,88048.0,0.00539196]
[1745289437039,0.11375594,88051.0,88048.0,0.00539196]
[1745289437665,0.11375594,88051.0,88046.0,0.01133295]
[1745289437900,0.11375594,88051.0,88049.0,0.0031093]
[1745289438079,0.11375594,88051.0,88048.0,0.01135744]
[1745289438280,0.11375594,88051.0,88050.0,0.0031093]
[1745289438485,0.11375594,88051.0,88047.0,0.23850834]
[1745289438899,0.11375594,88051.0,88048.0,0.00315148]
[1745289439103,0.11375594,88051.0,88049.0,0.001]
[1745289439522,0.11375594,88051.0,88050.0,0.00318496]
[1745289440622,0.11375594,88051.0,88049.0,0.001]
[1745289440817,0.11375594,88051.0,88050.0,0.00318612]
[1745289441757,0.34089702,88051.0,88050.0,0.00318612]
[1745289441981,0.22715914,88044.0,88043.0,0.0271374]
[1745289442193,0.34091508,88044.0,88043.0,0.0271374]
[1745289442702,0.34091508,88044.0,88043.0,0.03032352]
[1745289443378,0.34091508,88044.0,88043.0,0.04093117]
[1745289443676,0.34191508,88044.0,88043.0,0.04193117]
[1745289444313,0.11575594,88044.0,88043.0,0.04193117]
[1745289459032,0.11575594,88044.0,88042.0,0.06589476]
[1745289459301,0.11575594,88044.0,88043.0,0.02996382]
[1745289459919,0.11475594,88044.0,88043.0,0.02996382]
[1745289460116,0.11475594,88044.0,88043.0,0.00293082]
[1745289460333,0.11475594,88044.0,88042.0,0.06589476]
[1745289460334,0.11575594,88044.0,88042.0,0.06589476]
[1745289460547,0.11475594,88044.0,88043.0,0.00293082]
[1745289460772,0.11475594,88044.0,88043.0,0.00268659]
[1745289460929,0.11475594,88044.0,88043.0,0.02969957]
[1745289461137,0.11375594,88044.0,88043.0,0.00268659]
[1745289461533,0.11383399,88044.0,88042.0,0.2271625]
[1745289461714,0.11383399,88044.0,88043.0,0.00268659]
[1745289461924,0.11383399,88044.0,88042.0,0.2271625]
[1745289462139,0.11483399,88044.0,88043.0,0.23084831]
[1745289462704,0.11383399,88044.0,88043.0,0.22984831]
[1745289463138,0.11483399,88044.0,88043.0,0.22984831]
[1745289463363,0.11383399,88044.0,88043.0,0.22984831]
[1745289463820,0.11583399,88044.0,88043.0,0.23084831]
[1745289467598,0.11583399,88044.0,88043.0,0.00368659]
[1745289467830,0.11583399,88044.0,88043.0,0.23084831]
[1745289468682,0.38879313,88044.0,88043.0,0.00368659]
[1745289469110,0.38879313,88044.0,88043.0,0.001]
[1745289470515,0.22718769,88033.0,88031.0,0.34]
[1745289470720,0.11275594,88033.0,88032.0,0.00269427]
[1745289471138,0.11275594,88033.0,88032.0,0.0133227]
[1745289472234,0.11260545,88033.0,88032.0,0.0133227]
[1745289472835,0.11360545,88033.0,88032.0,0.0133227]
[1745289473250,0.11360545,88033.0,88032.0,0.01062843]
[1745289473456,0.11360545,88033.0,88032.0,0.01312093]
[1745289473641,0.11360545,88033.0,88032.0,0.01412093]
[1745289479561,0.11360545,88033.0,88032.0,0.01362661]
[1745289480829,0.11360545,88033.0,88032.0,0.35362661]
[1745289490445,0.001,88033.0,88032.0,0.35362661]
[1745289490650,0.001,88033.0,88032.0,0.40122661]
[1745289491654,0.001,88033.0,88032.0,0.40222661]
[1745289498567,0.001,88033.0,88032.0,0.35462661]
[1745289500172,0.11475594,88033.0,88032.0,0.01462661]
[1745289500590,0.11475594,88033.0,88032.0,0.01213411]
[1745289500797,0.11475594,88033.0,88032.0,0.0146188]
[1745289501013,0.11475594,88033.0,88032.0,0.3546188]
[1745289509151,0.11575594,88033.0,88032.0,0.0023482]
[1745289511091,0.11475594,88033.0,88032.0,0.0023482]
[1745289511314,0.11575594,88033.0,88032.0,0.0023482]
[1745289511524,0.16085594,88033.0,88032.0,0.0023482]
[1745289511734,0.16085594,88033.0,88031.0,0.02595189]
[1745289511939,0.27428753,88033.0,88032.0,0.00235013]
[1745289512082,0.16085594,88033.0,88032.0,0.00235013]
[1745289512434,0.16085594,88033.0,88030.0,0.01135976]
[1745289512637,0.11375594,88032.0,88030.0,0.01135976]
[1745289512849,0.11375594,88032.0,88027.0,0.35136015]
[1745289512850,0.12511544,88032.0,88027.0,0.35136015]
[1745289513090,0.12511544,88032.0,88028.0,0.01136002]
[1745289513500,0.11375594,88032.0,88029.0,0.35135989]
[1745289514215,0.11375594,88032.0,88029.0,0.578556]
[1745289514512,0.11375594,88032.0,88031.0,0.34]
[1745289514713,0.11375594,88032.0,88029.0,0.27126686]
[1745289515548,0.11375594,88032.0,88030.0,0.34]
[1745289515549,0.34094659,88032.0,88030.0,0.34]
[1745289515682,0.11575594,88032.0,88030.0,0.34]
[1745289516095,0.11475594,88032.0,88030.0,0.34]
[1745289516467,0.11575594,88032.0,88030.0,0.34]
[1745289516648,0.12611544,88032.0,88029.0,0.04407075]
[1745289516893,0.35230734,88032.0,88031.0,0.00235013]
[1745289517078,0.35330734,88032.0,88030.0,0.00236722]
[1745289517285,0.35330734,88032.0,88029.0,0.04407075]
[1745289517491,0.35330734,88032.0,88031.0,0.00236722]
[1745289517692,0.35330734,88032.0,88029.0,0.01135989]
[1745289517896,0.35330734,88032.0,88031.0,0.00236722]
[1745289518115,0.35430734,88032.0,88029.0,0.01135989]
[1745289518557,0.35430734,88032.0,87969.0,0.05630618]
[1745289518558,0.2272185,88021.0,88020.0,0.0004224]
[1745289518763,0.38607444,88021.0,88020.0,0.0004224]
[1745289519175,0.43577444,88021.0,88020.0,0.0004224]
[1745289519844,0.43677444,88021.0,88020.0,0.0004224]
[1745289520231,0.43777444,88021.0,88020.0,0.0004224]
[1745289520435,0.43777444,88021.0,88020.0,0.0024224]
[1745289520757,0.43677444,88021.0,88020.0,0.0024224]
[1745289521411,0.43677444,88021.0,88020.0,0.0004224]
[1745289521832,0.43777444,88021.0,88020.0,0.0004224]
[1745289522211,0.43877444,88021.0,88020.0,0.0004224]
[1745289522415,0.44077444,88021.0,88020.0,0.0004224]
[1745289524163,0.44161984,88021.0,88020.0,0.0004224]
[1745289532341,0.01136299,88005.0,88002.0,0.34]
[1745289532556,0.01136299,88005.0,88002.0,0.37223698]
[1745289532876,0.01136299,88005.0,88003.0,0.00238503]
[1745289533567,0.22726239,88004.0,88003.0,0.00238503]
[1745289533778,0.39031833,88004.0,88003.0,0.00284293]
[1745289533958,0.39031833,88004.0,88003.0,0.0004579]
[1745289534495,0.39031833,88004.0,88003.0,0.00384293]
[1745289535702,0.39031833,88004.0,88003.0,0.0004579]
[1745289535969,0.39131833,88004.0,88003.0,0.0004579]
[1745289536588,0.39231833,88004.0,88003.0,0.0004579]
[1745289536797,0.39131833,88004.0,88003.0,0.0004579]
[1745289537236,0.39231833,88004.0,88003.0,0.0004579]
[1745289539507,0.43761833,88004.0,88003.0,0.0004579]
[1745289545204,0.39231833,88004.0,88003.0,0.0004579]
[1745289546065,0.34301833,88004.0,88003.0,0.0004579]
[1745289546678,0.34301833,88004.0,88003.0,0.01107486]
[1745289546878,0.34301833,88004.0,88003.0,0.01349957]
[1745289547756,0.34301833,88004.0,88003.0,0.01107486]
[1745289547979,0.34301833,88004.0,88003.0,0.01349957]
[1745289549637,0.002,88004.0,88003.0,0.39919957]
[1745289550950,0.001,88004.0,88003.0,0.39919957]
[1745289551167,0.002,88004.0,88003.0,0.39919957]
[1745289551707,0.001,88004.0,88003.0,0.39919957]
[1745289551922,0.001,88004.0,88003.0,0.40019957]
[1745289552599,0.001,88004.0,88003.0,0.35449957]
[1745289558592,0.001,88004.0,88003.0,0.01449957]
[1745289558593,0.002,88004.0,88003.0,0.01449957]
[1745289558839,0.16185594,88004.0,88003.0,0.35449957]
[1745289560820,0.16185594,88004.0,88003.0,0.01449957]
[1745289564611,0.16185594,88004.0,88003.0,0.01207486]
[1745289565041,0.16185594,88004.0,88003.0,0.01107486]
[1745289565251,0.16185594,88004.0,88003.0,0.0004579]
[1745289565471,0.16285594,88004.0,88003.0,0.0004579]
[1745289565677,0.21075594,88004.0,88003.0,0.0004579]
[1745289566146,0.20975594,88004.0,88003.0,0.0004579]
[1745289566391,0.32398305,87996.0,87995.0,0.000303]
[1745289566621,0.43773899,87996.0,87995.0,0.00039163]
[1745289567079,0.43773899,87996.0,87992.0,1e-08]
[1745289567080,0.47918565,87996.0,87992.0,1e-08]
[1745289567296,0.22729597,87991.0,87990.0,1e-08]
[1745289567526,0.38935191,87991.0,87990.0,8.346e-05]
[1745289569508,0.32341147,87985.0,87984.0,0.0004226]
[1745289569731,0.43801281,87985.0,87984.0,0.0004226]
[1745289570864,0.44101281,87985.0,87984.0,0.0024226]
[1745289571304,0.45555366,87985.0,87984.0,0.0024226]
[1745289574007,0.45555366,87985.0,87984.0,0.0036226]
[1745289574839,0.44101281,87985.0,87984.0,0.0036226]
[1745289575195,0.55104491,87985.0,87984.0,0.0036226]
[1745289575410,0.45555366,87985.0,87984.0,0.0036226]
[1745289576464,0.45455366,87985.0,87984.0,0.0036226]
[1745289576888,0.45455366,87985.0,87984.0,0.0016226]
[1745289577999,0.2273554,87968.0,87965.0,0.0004228]
[1745289578219,0.38891134,87968.0,87967.0,0.00050606]
[1745289579321,0.38975674,87968.0,87967.0,0.00050606]
[1745289579525,0.22740451,87949.0,87946.0,0.34]
[1745289579745,0.22740968,87947.0,87946.0,0.34]
[1745289579962,0.34116562,87947.0,87946.0,0.34]
[1745289580184,0.0506454,87968.0,87955.0,0.35136945]
[1745289580435,0.0028454,87968.0,87967.0,0.002]
[1745289580651,0.34295674,87968.0,87967.0,0.002]
[1745289580842,0.22737091,87962.0,87961.0,0.34]
[1745289581083,0.11375594,87962.0,87961.0,0.34]
[1745289581848,0.11275594,87962.0,87960.0,0.34]
[1745289582478,0.34012851,87962.0,87960.0,0.34]
[1745289582700,0.23875526,87957.0,87949.0,0.35137022]
[1745289582905,0.34114236,87956.0,87950.0,0.22740193]
[1745289583116,0.01136996,87951.0,87948.0,0.0004228]
[1745289583317,0.01136957,87954.0,87950.0,0.22740193]
[1745289583504,0.12412564,87953.0,87950.0,0.01137009]
[1745289583707,0.22740193,87950.0,87949.0,0.34]
[1745289583931,0.34115787,87950.0,87949.0,0.34]
[1745289584068,0.11375594,87950.0,87949.0,0.34]
[1745289584714,0.11375594,87950.0,87948.0,0.0004228]
[1745289584910,0.11375594,87949.0,87948.0,0.0004228]
[1745289585120,0.11075594,87949.0,87948.0,0.0004228]
[1745289586838,0.11075594,87949.0,87948.0,0.0024228]
[1745289587033,0.11175594,87949.0,87948.0,0.0024228]
[1745289587242,0.11175594,87949.0,87948.0,0.0004228]
[1745289587473,0.11275594,87949.0,87948.0,0.0024228]
[1745289595225,0.11275594,87949.0,87948.0,0.00527755]
[1745289595446,0.11275594,87949.0,87948.0,0.0024228]
[1745289595657,0.11275594,87949.0,87948.0,0.00527755]
[1745289595776,0.11275594,87949.0,87948.0,0.0024228]
[1745289595976,0.11275594,87949.0,87948.0,0.00527755]
[1745289596247,0.11275594,87949.0,87948.0,0.0024228]
[1745289596419,0.11275594,87949.0,87948.0,0.00527755]
[1745289600822,0.34016045,87949.0,87948.0,0.00527755]
[1745289601178,0.34016045,87949.0,87948.0,0.0024228]
[1745289601594,0.34016045,87949.0,87948.0,0.00531147]
[1745289601815,0.34016045,87949.0,87948.0,0.0024228]
[1745289602019,0.34016045,87949.0,87948.0,0.00531147]
[1745289602253,0.34016045,87949.0,87948.0,0.0024228]
[1745289605568,0.22741486,87945.0,87938.0,0.01137164]
[1745289605796,0.01137048,87947.0,87939.0,0.04128805]
[1745289605797,0.01137126,87941.0,87939.0,0.04128805]
[1745289605982,0.11375594,87940.0,87938.0,0.01137164]
[1745289606973,0.11375594,87940.0,87938.0,0.01237164]
[1745289607170,0.11475594,87940.0,87938.0,0.01237164]
[1745289607366,0.11475594,87940.0,87938.0,0.01137164]
[1745289607762,0.11575594,87940.0,87938.0,0.01237164]
[1745289608680,0.11575594,87940.0,87938.0,0.28037716]
[1745289608898,0.11575594,87940.0,87938.0,0.23980354]
[1745289610272,0.11575594,87940.0,87939.0,0.00290591]
[1745289611732,0.002,87940.0,87939.0,0.00290591]
[1745289611981,0.001,87940.0,87939.0,0.00290591]
[1745289612174,0.002,87940.0,87939.0,0.00290591]
[1745289612409,0.001,87940.0,87939.0,0.00290591]
[1745289612845,0.002,87940.0,87939.0,0.00290591]
[1745289613569,0.11575594,87940.0,87939.0,0.00290591]
[1745289613807,0.11575594,87940.0,87938.0,0.04208093]
[1745289613808,0.22743037,87939.0,87938.0,0.04208093]
[1745289614041,0.34118631,87939.0,87938.0,0.04208093]
[1745289614276,0.22743813,87936.0,87931.0,0.01179535]
[1745289614697,0.22743813,87936.0,87935.0,0.0581976]
[1745289616430,0.22843813,87936.0,87935.0,0.0581976]
[1745289616657,0.002,87936.0,87935.0,0.0581976]
[1745289619286,0.22943813,87936.0,87935.0,0.0581976]
[1745289619440,0.002,87936.0,87935.0,0.0581976]
[1745289625171,0.22943813,87936.0,87935.0,0.0581976]
[1745289625705,0.002,87936.0,87935.0,0.0581976]
[1745289628904,0.002,87936.0,87935.0,0.3981976]
[1745289631724,0.002,87936.0,87935.0,0.40071325]
[1745289642722,0.00045806,87949.0,87945.0,0.01137074]
[1745289642937,0.0464,87974.0,87968.0,0.2273554]
[1745289643151,0.01136725,87972.0,87966.0,0.23532727]
[1745289643356,0.0464,87974.0,87970.0,0.22734829]
[1745289643561,0.11375594,87973.0,87970.0,0.23871576]
[1745289643782,0.11375594,87973.0,87971.0,0.00535711]
[1745289644436,0.11375594,87973.0,87972.0,0.22734506]
[1745289644831,0.11375594,87973.0,87972.0,0.23262372]
[1745289645808,0.34309842,87973.0,87972.0,0.00527866]
[1745289646202,0.34109842,87973.0,87971.0,0.04510193]
[1745289646550,0.34109842,87973.0,87963.0,0.01136841]
[1745289646551,0.23671624,87971.0,87965.0,0.34]
[1745289646781,0.01136764,87969.0,87965.0,0.34]
[1745289647077,0.11375594,87968.0,87966.0,0.00527407]
[1745289647247,0.11175594,87968.0,87966.0,0.00527407]
[1745289647938,0.11175594,87968.0,87966.0,0.22735979]
[1745289648151,0.11175594,87968.0,87967.0,0.00519991]
[1745289648578,0.11275594,87968.0,87967.0,0.00519991]
[1745289649655,0.0008462,87975.0,87974.0,0.56733989]
[1745289649875,0.11460214,87975.0,87974.0,0.56733989]
[1745289650148,0.11460214,87975.0,87974.0,0.57253683]
[1745289651207,0.11760214,87975.0,87974.0,0.57353683]
[1745289651624,0.11760214,87975.0,87974.0,0.34619694]
[1745289652045,0.11760214,87975.0,87974.0,0.23353683]
[1745289652339,0.12060214,87975.0,87974.0,0.23353683]
[1745289652672,0.0068462,87975.0,87974.0,0.23353683]
[1745289653757,0.0038462,87975.0,87974.0,0.23353683]
[1745289653980,0.0028462,87975.0,87974.0,0.23253683]
[1745289654161,0.0028462,87975.0,87974.0,0.23353683]
[1745289654388,0.0038462,87975.0,87974.0,0.23353683]
[1745289656028,0.0018462,87975.0,87974.0,0.23353683]
[1745289656390,0.0038462,87975.0,87974.0,0.23353683]
[1745289659802,0.0038462,87975.0,87974.0,0.57353683]
[1745289663353,0.0038462,87975.0,87974.0,0.34]
[1745289663561,0.0038462,87975.0,87974.0,0.00461575]
[1745289664137,0.0038462,87975.0,87972.0,0.35136725]
[1745289664378,0.0038462,87975.0,87974.0,0.22733989]
[1745289665014,0.0038462,87975.0,87974.0,0.23195564]
[1745289665481,0.0028462,87975.0,87974.0,0.23195564]
[1745289665666,0.0008462,87975.0,87974.0,0.23195564]
[1745289665869,0.0018462,87975.0,87974.0,0.23195564]
[1745289666274,0.0008462,87975.0,87974.0,0.23195564]
[1745289666483,0.0018462,87975.0,87974.0,0.23195564]
[1745289666653,0.0028462,87975.0,87974.0,0.23295564]
[1745289666862,0.01136428,87995.0,87974.0,0.23295564]
[1745289667073,0.00096579,87985.0,87984.0,0.56731405]
[1745289667270,0.00096579,87985.0,87984.0,0.67563405]
[1745289667601,0.00096579,87985.0,87984.0,0.6802498]
[1745289667824,0.00096579,87985.0,87984.0,0.6889101]
[1745289668252,0.00196579,87985.0,87984.0,0.6889101]
[1745289668700,0.00296579,87985.0,87984.0,0.6889101]
[1745289669116,0.00196579,87985.0,87984.0,0.6889101]
[1745289669557,0.00196579,87985.0,87984.0,0.6899101]
[1745289669767,0.00396579,87985.0,87984.0,0.6909101]
[1745289670193,0.00196579,87985.0,87984.0,0.6899101]
[1745289670403,0.00396579,87985.0,87984.0,0.6909101]
[1745289671540,0.00396579,87985.0,87984.0,0.69800577]
[1745289672611,0.0485,88006.0,88004.0,0.22726141]
[1745289672828,0.11375594,88005.0,88004.0,0.56726141]
[1745289673027,0.11375594,88005.0,88004.0,0.57435708]
[1745289673989,0.11775594,88005.0,88004.0,0.62135275]
[1745289674751,0.11775594,88005.0,88004.0,0.62235275]
[1745289675166,0.11775594,88005.0,88004.0,0.62135275]
[1745289675612,0.12175594,88005.0,88004.0,0.62235275]
[1745289676975,0.12175594,88005.0,88004.0,0.05509134]
[1745289677200,0.12175594,88005.0,87962.0,0.0583]
[1745289677201,0.0478,87978.0,87970.0,0.01136751]
[1745289677421,0.0478,87978.0,87975.0,0.01136686]
[1745289677636,0.0478,87978.0,87976.0,0.22733472]
[1745289677878,0.0478,87978.0,87977.0,0.34]
[1745289678311,0.0478,87978.0,87977.0,0.44828]
[1745289678312,0.0468,87978.0,87977.0,0.44828]
[1745289678571,0.0468,87978.0,87977.0,0.34]
[1745289678786,0.0468,87978.0,87965.0,0.10828]
[1745289678787,0.23871025,87973.0,87965.0,0.10828]
[1745289679005,0.23870678,87975.0,87971.0,0.35136738]
[1745289679236,0.23770678,87975.0,87971.0,0.35136738]
[1745289679447,0.01136699,87974.0,87971.0,0.35136738]
[1745289679848,0.01036686,87975.0,87971.0,0.35136738]
[1745289680885,0.001,87973.0,87971.0,0.35136738]
[1745289681291,0.00936686,87975.0,87971.0,0.35136738]
[1745289681415,0.01036686,87975.0,87971.0,0.35236738]
[1745289681614,0.01036686,87975.0,87971.0,0.35136738]
[1745289682124,0.00936686,87975.0,87971.0,0.35136738]
[1745289682353,0.23770667,87975.0,87971.0,0.01136738]
[1745289683140,0.001,87973.0,87971.0,0.01236738]
[1745289683347,0.23770667,87975.0,87971.0,0.01136738]
[1745289683545,0.01136699,87974.0,87971.0,0.01136738]
[1745289684274,0.001,87973.0,87970.0,0.01136751]
[1745289684489,0.01236712,87973.0,87970.0,0.01136751]
[1745289684698,0.06056751,87970.0,87967.0,0.04715803]
[1745289685099,0.0492,87970.0,87968.0,0.34]
[1745289685825,0.0502,87970.0,87968.0,0.34]
[1745289686477,0.0522,87970.0,87967.0,0.39860433]
[1745289686715,0.0502,87970.0,87967.0,0.39860433]
[1745289687203,0.0502,87970.0,87967.0,0.38723644]
[1745289687204,0.34110875,87969.0,87967.0,0.38723644]
[1745289687457,0.34110875,87969.0,87967.0,0.04723644]
[1745289687799,0.01136789,87967.0,87964.0,0.01136828]
[1745289689042,0.01236789,87967.0,87964.0,0.01136828]
[1745289689746,0.001,87967.0,87965.0,0.22736315]
[1745289690648,0.002,87967.0,87965.0,0.22736315]
[1745289691000,0.001,87967.0,87965.0,0.2387313]
[1745289691416,0.003,87967.0,87965.0,0.2387313]
[1745289692629,0.003,87967.0,87965.0,0.01136815]
[1745289692849,0.003,87967.0,87965.0,0.23873115]
[1745289695058,0.22736294,87966.0,87964.0,0.04515556]
[1745289695492,0.01136841,87963.0,87960.0,0.0113688]
[1745289696120,0.01136854,87962.0,87959.0,0.04640563]
[1745289696333,0.01136828,87964.0,87960.0,0.34]
[1745289697169,0.01136828,87964.0,87960.0,0.3513688]
[1745289697609,0.01236828,87964.0,87960.0,0.3513688]
[1745289697846,0.002,87964.0,87960.0,0.3513688]
[1745289698085,0.002,87964.0,87963.0,0.34]
[1745289699987,0.002,87964.0,87963.0,0.34400362]
[1745289700406,0.001,87964.0,87963.0,0.34400362]
[1745289700628,0.01136802,87966.0,87963.0,0.00400362]
[1745289700913,0.003,87964.0,87963.0,0.01537203]
[1745289701478,0.35248378,87967.0,87963.0,0.01537203]
[1745289701703,0.001,87966.0,87963.0,0.24273866]
[1745289701911,0.003,87966.0,87963.0,0.24273866]
[1745289702109,0.003,87966.0,87962.0,0.01136854]
[1745289702316,0.002,87966.0,87963.0,0.00367235]
[1745289702614,0.002,87966.0,87963.0,0.01504076]
[1745289703118,0.35248378,87967.0,87963.0,0.01504076]
[1745289703343,0.22736574,87964.0,87963.0,0.00367235]
[1745289703572,0.43812168,87964.0,87963.0,0.00367235]
[1745289703796,0.22737608,87960.0,87959.0,0.04640563]
[1745289704010,0.34113202,87960.0,87959.0,0.04640563]
[1745289705157,0.34213202,87960.0,87959.0,0.04640563]
[1745289706234,0.34413202,87960.0,87959.0,0.04640563]
[1745289706667,0.39333202,87960.0,87959.0,0.00011979]
[1745289707555,0.39033202,87960.0,87959.0,0.00011979]
[1745289707784,0.39133202,87960.0,87959.0,0.00011979]
[1745289708006,0.39233202,87960.0,87959.0,0.00011979]
[1745289708457,0.39133202,87960.0,87959.0,0.00011979]
[1745289709289,0.39033202,87960.0,87959.0,0.00011979]
[1745289709723,0.39633202,87960.0,87959.0,0.00011979]
[1745289713889,0.22743813,87936.0,87935.0,0.0133093]
[1745289714113,0.22743813,87936.0,87935.0,0.01376736]
[1745289714563,0.22743813,87936.0,87935.0,0.01713329]
[1745289715371,0.22743813,87936.0,87935.0,0.05720745]
[1745289715601,0.22743813,87936.0,87935.0,0.01713329]
[1745289716536,0.22943813,87936.0,87935.0,0.01713329]
[1745289716713,0.23143813,87936.0,87935.0,0.01713329]
[1745289717318,0.004,87936.0,87935.0,0.01713329]
[1745289718107,0.004,87936.0,87935.0,0.05590855]
[1745289718372,0.004,87936.0,87935.0,0.01713329]
[1745289718967,0.004,87936.0,87935.0,0.01376736]
[1745289719366,0.002,87936.0,87935.0,0.01376736]
[1745289719538,0.002,87936.0,87935.0,0.0172032]
[1745289719751,0.002,87936.0,87935.0,0.05548456]
[1745289720109,0.004,87936.0,87935.0,0.01376736]
[1745289720350,0.11775594,87936.0,87935.0,0.01376736]
[1745289721510,0.11775594,87936.0,87935.0,0.05378914]
[1745289731626,0.11775594,87936.0,87935.0,0.05739709]
[1745289737052,0.004,87936.0,87935.0,0.62483781]
[1745289737744,0.004,87936.0,87935.0,0.39739709]
[1745289758734,0.004,87936.0,87935.0,0.21950017]
[1745289758945,0.004,87936.0,87935.0,0.00267282]
[1745289759214,0.34519407,87936.0,87935.0,0.00267282]
[1745289760610,0.34519407,87936.0,87934.0,0.0004224]
[1745289760839,0.23189676,87936.0,87935.0,0.04154727]
[1745289761051,0.23189676,87936.0,87935.0,0.00267282]
[1745289761052,0.4412527,87936.0,87935.0,0.00267282]
[1745289761530,0.0484,87935.0,87934.0,0.0004224]
[1745289761820,0.16215594,87935.0,87934.0,0.0004224]
[1745289762207,0.16315594,87935.0,87934.0,0.0004224]
[1745289763135,0.16515594,87935.0,87934.0,0.0004224]
[1745289763431,0.16715594,87935.0,87934.0,0.0004224]
[1745289771240,0.16748045,87935.0,87934.0,0.0004224]
[1745289771876,0.227464,87926.0,87907.0,0.0004226]
[1745289772083,0.227464,87926.0,87882.0,0.0236729]
[1745289772084,0.23895082,87885.0,87882.0,0.00535365]
[1745289772523,0.01137772,87891.0,87882.0,0.00535365]
[1745289772735,0.01137798,87889.0,87883.0,0.00225738]
[1745289773146,0.01137798,87889.0,87882.0,0.01398992]
[1745289773371,0.001,87885.0,87884.0,0.22973211]
[1745289773571,0.00045834,87889.0,87884.0,0.22973211]
[1745289773572,0.00045834,87889.0,87888.0,0.22756235]
[1745289773969,0.00145834,87889.0,87888.0,0.22756235]
[1745289774214,0.00045834,87889.0,87888.0,0.22972176]
[1745289775761,0.00145834,87889.0,87888.0,0.22972176]
[1745289776200,0.00245834,87889.0,87888.0,0.22972176]
[1745289777154,0.34377404,87889.0,87888.0,0.00215941]
[1745289777381,0.23895085,87885.0,87882.0,0.04192844]
[1745289777604,0.11621428,87889.0,87882.0,0.04192844]
[1745289777811,0.01137824,87887.0,87884.0,0.01137863]
[1745289778043,0.34132378,87886.0,87882.0,0.05330733]
[1745289778460,0.35270215,87886.0,87882.0,0.05330733]
[1745289778664,0.0113785,87885.0,87882.0,0.04192844]
[1745289779976,0.22757529,87883.0,87882.0,0.04192844]
[1745289780180,0.34133123,87883.0,87882.0,0.04192844]
[1745289782065,0.34333123,87883.0,87882.0,0.04192844]
[1745289782518,0.34533123,87883.0,87882.0,0.04192844]
[1745289786409,0.34533123,87883.0,87882.0,0.00261103]
[1745289787643,0.11775594,87883.0,87882.0,0.00261103]
[1745289787846,0.004,87883.0,87882.0,0.23018891]
[1745289792518,0.004,87883.0,87882.0,0.62320305]
[1745289792728,0.004,87883.0,87882.0,0.6209275]
[1745289792936,0.01137552,87908.0,87888.0,0.22756235]
[1745289793126,0.01137578,87906.0,87888.0,0.22983757]
[1745289793329,0.23890063,87903.0,87888.0,0.22756235]
[1745289793547,0.01137617,87903.0,87888.0,0.22756235]